[Event "Titled Tuesday Blitz November 22 Early 2022"]
[White "Kleiman, Jake"]
[Black "Kilic, Eray"]
[WhiteFideId "2020041"]
[BlackFideId "44517173"]
[WhiteElo "2605"]
[BlackElo "2328"]
[Result "1-0"]
[Round "11"]
[TimeControl "180+1"]
[Date "2022.11.22"]
[WhiteClock "0:00:05"]
[BlackClock "0:00:10"]

1. e4 {[%clk 0:03:00]}  e5 {[%clk 0:02:59]} 2. Nf3 {[%clk 0:03:00]}  d5 {[%clk 0:02:59]} 3. Nxe5 {[%clk 0:02:44]}  Bd6 {[%clk 0:02:58]} 4. d4 {[%clk 0:02:44]}  dxe4 {[%clk 0:02:59]} 5. Bf4 {[%clk 0:02:34]}  Nf6 {[%clk 0:02:58]} 6. Nc3 {[%clk 0:02:33]}  O-O {[%clk 0:02:58]} 7. Qd2 {[%clk 0:02:27]}  Nc6 {[%clk 0:02:58]} 8. O-O-O {[%clk 0:02:22]}  Bxe5 {[%clk 0:02:53]} 9. dxe5 {[%clk 0:02:14]}  Qxd2+ {[%clk 0:02:53]} 10. Rxd2 {[%clk 0:02:14]}  Nh5 {[%clk 0:02:53]} 11. Be3 {[%clk 0:01:58]}  Nxe5 {[%clk 0:02:52]} 12. Nxe4 {[%clk 0:01:56]}  a6 {[%clk 0:02:52]} 13. Be2 {[%clk 0:01:49]}  Nf6 {[%clk 0:02:50]} 14. Nxf6+ {[%clk 0:01:47]}  gxf6 {[%clk 0:02:51]} 15. f4 {[%clk 0:01:36]}  Nc6 {[%clk 0:02:51]} 16. Bf3 {[%clk 0:01:33]}  Re8 {[%clk 0:02:52]} 17. Bf2 {[%clk 0:01:30]}  Be6 {[%clk 0:02:48]} 18. b3 {[%clk 0:01:30]}  Rab8 {[%clk 0:02:40]} 19. g4 {[%clk 0:01:17]}  a5 {[%clk 0:02:24]} 20. Re1 {[%clk 0:01:08]}  Kg7 {[%clk 0:01:55]} 21. f5 {[%clk 0:00:50]}  Ne5 {[%clk 0:01:55]} 22. Rxe5 {[%clk 0:00:46]}  fxe5 {[%clk 0:01:54]} 23. fxe6 {[%clk 0:00:46]}  Rxe6 {[%clk 0:01:54]} 24. Be4 {[%clk 0:00:42]}  b6 {[%clk 0:01:48]} 25. Rd7 {[%clk 0:00:40]}  c6 {[%clk 0:01:45]} 26. Be3 {[%clk 0:00:38]}  Rbe8 {[%clk 0:01:40]} 27. Bxb6 {[%clk 0:00:37]}  Rf6 {[%clk 0:01:38]} 28. Bf5 {[%clk 0:00:35]}  h5 {[%clk 0:01:39]} 29. h3 {[%clk 0:00:34]}  hxg4 {[%clk 0:01:39]} 30. hxg4 {[%clk 0:00:35]}  Rh6 {[%clk 0:01:39]} 31. Bxa5 {[%clk 0:00:34]}  Ra8 {[%clk 0:01:37]} 32. b4 {[%clk 0:00:34]}  c5 {[%clk 0:01:33]} 33. a3 {[%clk 0:00:34]}  Rh3 {[%clk 0:01:29]} 34. Kb2 {[%clk 0:00:34]}  cxb4 {[%clk 0:01:18]} 35. axb4 {[%clk 0:00:33]}  Re8 {[%clk 0:01:18]} 36. Rc7 {[%clk 0:00:33]}  e4 {[%clk 0:01:18]} 37. Bb6 {[%clk 0:00:32]}  e3 {[%clk 0:01:17]} 38. Bxe3 {[%clk 0:00:24]}  Rhxe3 {[%clk 0:01:16]} 39. c3 {[%clk 0:00:21]}  Kf6 {[%clk 0:01:13]} 40. Kb3 {[%clk 0:00:21]}  R8e5 {[%clk 0:01:13]} 41. Rc6+ {[%clk 0:00:19]}  Kg5 {[%clk 0:01:13]} 42. Rc7 {[%clk 0:00:18]}  Kf6 {[%clk 0:01:09]} 43. Rc8 {[%clk 0:00:19]}  Rg3 {[%clk 0:01:09]} 44. Ka4 {[%clk 0:00:18]}  Rg1 {[%clk 0:01:05]} 45. b5 {[%clk 0:00:17]}  Ra1+ {[%clk 0:01:03]} 46. Kb4 {[%clk 0:00:17]}  Ra2 {[%clk 0:01:03]} 47. c4 {[%clk 0:00:17]}  Ke7 {[%clk 0:01:01]} 48. c5 {[%clk 0:00:10]}  Rb2+ {[%clk 0:00:57]} 49. Ka5 {[%clk 0:00:10]}  Re3 {[%clk 0:00:53]} 50. Rc7+ {[%clk 0:00:06]}  Kd8 {[%clk 0:00:53]} 51. Rd7+ {[%clk 0:00:05]}  Ke8 {[%clk 0:00:53]} 52. Rb7 {[%clk 0:00:04]}  Ra3+ {[%clk 0:00:38]} 53. Kb6 {[%clk 0:00:04]}  Rab3 {[%clk 0:00:38]} 54. Kc6 {[%clk 0:00:04]}  Rc3 {[%clk 0:00:39]} 55. Rc7 {[%clk 0:00:03]}  Kd8 {[%clk 0:00:37]} 56. Rc8+ {[%clk 0:00:03]}  Ke7 {[%clk 0:00:37]} 57. b6 {[%clk 0:00:04]}  Rbc2 {[%clk 0:00:37]} 58. Kb5 {[%clk 0:00:04]}  Rb2+ {[%clk 0:00:36]} 59. Kc6 {[%clk 0:00:04]}  Rcb3 {[%clk 0:00:34]} 60. Kc7 {[%clk 0:00:04]}  Rc3 {[%clk 0:00:32]} 61. Kb7 {[%clk 0:00:05]}  Rcb3 {[%clk 0:00:31]} 62. Rc7+ {[%clk 0:00:05]}  Kf6 {[%clk 0:00:32]} 63. Rc6+ {[%clk 0:00:05]}  Ke5 {[%clk 0:00:32]} 64. Kc7 {[%clk 0:00:06]}  Kd4 {[%clk 0:00:32]} 65. Bc8 {[%clk 0:00:06]}  Rb5 {[%clk 0:00:22]} 66. b7 {[%clk 0:00:06]}  Kd5 {[%clk 0:00:12]} 67. Kd7 {[%clk 0:00:04]}  Rxc5 {[%clk 0:00:11]} 68. Rxc5+ {[%clk 0:00:04]}  Kxc5 {[%clk 0:00:12]} 69. Ke7 {[%clk 0:00:05]}  Kd5 {[%clk 0:00:10]} 70. Kxf7 {[%clk 0:00:05]}  Ke5 {[%clk 0:00:10]} 71. Kg6 {[%clk 0:00:05]}  Kd6 {[%clk 0:00:10]} 72. g5 {[%clk 0:00:05]}  Ke7 {[%clk 0:00:10]} 73. Kg7 {[%clk 0:00:05]}  Ke8 {[%clk 0:00:09]} 74. g6 {[%clk 0:00:06]}  Ke7 {[%clk 0:00:10]} 75. Kg8 {[%clk 0:00:06]}  Kf6 {[%clk 0:00:11]} 76. g7 {[%clk 0:00:06]}  Ke7 {[%clk 0:00:12]} 77. Kh7 {[%clk 0:00:05]}  Rh2+ {[%clk 0:00:12]} 78. Kg6 {[%clk 0:00:06]}  Rg2+ {[%clk 0:00:12]} 79. Kh6 {[%clk 0:00:07]}  Kf6 {[%clk 0:00:10]} 80. Bg4 {[%clk 0:00:04]}  Rxg4 {[%clk 0:00:07]} 81. Kh5 {[%clk 0:00:05]}  Rg5+ {[%clk 0:00:06]} 82. Kh4 {[%clk 0:00:05]}  Rxg7 {[%clk 0:00:06]} 83. b8=Q {[%clk 0:00:05]}  Re7 {[%clk 0:00:06]} 84. Kg4 {[%clk 0:00:05]}  Ke6 {[%clk 0:00:07]} 85. Kf4 {[%clk 0:00:05]}  Kd7 {[%clk 0:00:08]} 86. Kf5 {[%clk 0:00:05]}  Rf7+ {[%clk 0:00:08]} 87. Ke5 {[%clk 0:00:06]}  Re7+ {[%clk 0:00:08]} 88. Kd5 {[%clk 0:00:06]}  Re1 {[%clk 0:00:08]} 89. Qb7+ {[%clk 0:00:06]}  Kd8 {[%clk 0:00:08]} 90. Qa8+ {[%clk 0:00:06]}  Kd7 {[%clk 0:00:09]} 91. Qa7+ {[%clk 0:00:05]}  Ke8 {[%clk 0:00:09]} 92. Qa4+ {[%clk 0:00:05]}  Kf7 {[%clk 0:00:09]} 93. Qf4+ {[%clk 0:00:05]}  Ke8 {[%clk 0:00:09]} 94. Qb8+ {[%clk 0:00:05]}  Kd7 {[%clk 0:00:09]} 95. Qb7+ {[%clk 0:00:04]}  Ke8 {[%clk 0:00:10]} 96. Qc8+ {[%clk 0:00:05]}  Kf7 {[%clk 0:00:10]} 97. Qc7+ {[%clk 0:00:05]}  Ke8 {[%clk 0:00:10]} 98. Qc8+ {[%clk 0:00:05]}  Kf7 {[%clk 0:00:11]} 99. Qg4 {[%clk 0:00:05]}  Rd1+ {[%clk 0:00:10]} 100. Qxd1 {[%clk 0:00:05]} 1-0


[Site "https://www.chess.com"]

[Event "Titled Tuesday Blitz November 22 Early 2022"]
[White "Krzywda, Andrzej"]
[Black "Salman, Pavel"]
[WhiteFideId "1114565"]
[BlackFideId "24153753"]
[WhiteElo "2149"]
[BlackElo "2187"]
[Result "0-1"]
[Round "11"]
[TimeControl "180+1"]
[Date "2022.11.23"]
[WhiteClock "0:00:01"]
[BlackClock "0:00:47"]

1. d4 {[%clk 0:03:00]}  Nf6 {[%clk 0:02:59]} 2. c4 {[%clk 0:03:01]}  c5 {[%clk 0:03:00]} 3. d5 {[%clk 0:03:01]}  b5 {[%clk 0:03:00]} 4. cxb5 {[%clk 0:03:02]}  a6 {[%clk 0:03:01]} 5. e3 {[%clk 0:03:02]}  axb5 {[%clk 0:03:01]} 6. Bxb5 {[%clk 0:03:01]}  Qa5+ {[%clk 0:03:02]} 7. Nc3 {[%clk 0:03:01]}  Bb7 {[%clk 0:03:02]} 8. Bd2 {[%clk 0:02:51]}  Qb6 {[%clk 0:03:02]} 9. a4 {[%clk 0:02:49]}  Nxd5 {[%clk 0:02:58]} 10. Nf3 {[%clk 0:02:49]}  e6 {[%clk 0:02:56]} 11. Ne5 {[%clk 0:02:46]}  Be7 {[%clk 0:02:45]} 12. Qg4 {[%clk 0:02:23]}  Bf6 {[%clk 0:02:42]} 13. Nc4 {[%clk 0:02:15]}  Qc7 {[%clk 0:02:42]} 14. O-O {[%clk 0:02:02]}  h5 {[%clk 0:02:41]} 15. Qg3 {[%clk 0:01:59]}  Qxg3 {[%clk 0:02:18]} 16. hxg3 {[%clk 0:02:00]}  O-O {[%clk 0:02:13]} 17. Nd6 {[%clk 0:01:55]}  Nxc3 {[%clk 0:02:10]} 18. Bxc3 {[%clk 0:01:51]}  Bxc3 {[%clk 0:02:08]} 19. bxc3 {[%clk 0:01:52]}  Bc6 {[%clk 0:02:04]} 20. c4 {[%clk 0:01:50]}  g5 {[%clk 0:01:55]} 21. a5 {[%clk 0:01:50]}  Kg7 {[%clk 0:01:49]} 22. a6 {[%clk 0:01:44]}  Ra7 {[%clk 0:01:49]} 23. Rfb1 {[%clk 0:01:42]}  f5 {[%clk 0:01:41]} 24. Bxc6 {[%clk 0:01:38]}  Nxc6 {[%clk 0:01:41]} 25. Rb7 {[%clk 0:01:29]}  Rxb7 {[%clk 0:01:31]} 26. axb7 {[%clk 0:01:29]}  Rb8 {[%clk 0:01:31]} 27. Ra8 {[%clk 0:01:20]}  Kf6 {[%clk 0:01:30]} 28. Ne8+ {[%clk 0:00:59]}  Kf7 {[%clk 0:01:21]} 29. Nd6+ {[%clk 0:00:20]}  Ke7 {[%clk 0:01:21]} 30. Nb5 {[%clk 0:00:13]}  Rxb7 {[%clk 0:00:57]} 31. Rh8 {[%clk 0:00:13]}  Kf6 {[%clk 0:00:54]} 32. Rxh5 {[%clk 0:00:13]}  Ne5 {[%clk 0:00:49]} 33. Rh6+ {[%clk 0:00:12]}  Kg7 {[%clk 0:00:49]} 34. Rh1 {[%clk 0:00:05]}  Nxc4 {[%clk 0:00:49]} 35. Nc3 {[%clk 0:00:01]}  Rb2 {[%clk 0:00:47]} 0-1


[Site "https://www.chess.com"]

[Event "Titled Tuesday Blitz November 22 Early 2022"]
[White "Kvaloy, Aksel Bu"]
[Black "Kamsky, Gata"]
[WhiteFideId "1528815"]
[BlackFideId "2000024"]
[WhiteElo "2184"]
[BlackElo "2666"]
[Result "1/2-1/2"]
[Round "11"]
[TimeControl "180+1"]
[Date "2022.11.22"]
[WhiteClock "0:00:05"]
[BlackClock "0:00:07"]

1. e4 {[%clk 0:03:00]}  c6 {[%clk 0:02:53]} 2. d4 {[%clk 0:03:00]}  d5 {[%clk 0:02:53]} 3. e5 {[%clk 0:02:56]}  Bf5 {[%clk 0:02:49]} 4. Nd2 {[%clk 0:02:42]}  e6 {[%clk 0:02:46]} 5. Nb3 {[%clk 0:02:25]}  c5 {[%clk 0:02:41]} 6. Bb5+ {[%clk 0:02:19]}  Nc6 {[%clk 0:02:36]} 7. dxc5 {[%clk 0:02:19]}  Bxc5 {[%clk 0:02:35]} 8. a4 {[%clk 0:02:19]}  Bb4+ {[%clk 0:01:22]} 9. c3 {[%clk 0:02:18]}  Ba5 {[%clk 0:01:22]} 10. Nd4 {[%clk 0:02:09]}  Ne7 {[%clk 0:01:20]} 11. Bg5 {[%clk 0:02:09]}  Qc7 {[%clk 0:01:02]} 12. Bxe7 {[%clk 0:02:07]}  Kxe7 {[%clk 0:00:47]} 13. Nxf5+ {[%clk 0:01:42]}  exf5 {[%clk 0:00:46]} 14. Qxd5 {[%clk 0:01:23]}  Qxe5+ {[%clk 0:00:43]} 15. Qxe5+ {[%clk 0:01:24]}  Nxe5 {[%clk 0:00:44]} 16. Ne2 {[%clk 0:01:21]}  a6 {[%clk 0:00:43]} 17. f4 {[%clk 0:01:20]}  axb5 {[%clk 0:00:40]} 18. fxe5 {[%clk 0:01:20]}  Bb6 {[%clk 0:00:39]} 19. Nf4 {[%clk 0:01:00]}  Rhd8 {[%clk 0:00:34]} 20. Ke2 {[%clk 0:01:00]}  bxa4 {[%clk 0:00:32]} 21. Rhd1 {[%clk 0:01:01]}  Rxd1 {[%clk 0:00:24]} 22. Rxd1 {[%clk 0:01:02]}  Ke8 {[%clk 0:00:19]} 23. Nd5 {[%clk 0:01:00]}  Bd8 {[%clk 0:00:19]} 24. Rd4 {[%clk 0:00:57]}  Ra5 {[%clk 0:00:17]} 25. c4 {[%clk 0:00:52]}  Rc5 {[%clk 0:00:16]} 26. Kd3 {[%clk 0:00:50]}  b5 {[%clk 0:00:16]} 27. Nc3 {[%clk 0:00:43]}  bxc4+ {[%clk 0:00:15]} 28. Rxc4 {[%clk 0:00:44]}  Rxe5 {[%clk 0:00:15]} 29. Nxa4 {[%clk 0:00:44]}  g5 {[%clk 0:00:15]} 30. Rc5 {[%clk 0:00:41]}  Re4 {[%clk 0:00:11]} 31. Nc3 {[%clk 0:00:39]}  Rb4 {[%clk 0:00:11]} 32. Rb5 {[%clk 0:00:21]}  Rh4 {[%clk 0:00:11]} 33. h3 {[%clk 0:00:20]}  g4 {[%clk 0:00:11]} 34. Rxf5 {[%clk 0:00:15]}  gxh3 {[%clk 0:00:11]} 35. gxh3 {[%clk 0:00:15]}  Rxh3+ {[%clk 0:00:12]} 36. Kc4 {[%clk 0:00:16]}  Rh4+ {[%clk 0:00:12]} 37. Kd3 {[%clk 0:00:09]}  h5 {[%clk 0:00:11]} 38. Nd5 {[%clk 0:00:09]}  Rh3+ {[%clk 0:00:09]} 39. Kc4 {[%clk 0:00:09]}  h4 {[%clk 0:00:09]} 40. b4 {[%clk 0:00:09]}  Rg3 {[%clk 0:00:09]} 41. Rh5 {[%clk 0:00:09]}  Rg1 {[%clk 0:00:07]} 42. Rh8+ {[%clk 0:00:09]}  Kd7 {[%clk 0:00:07]} 43. b5 {[%clk 0:00:07]}  Rc1+ {[%clk 0:00:07]} 44. Kd4 {[%clk 0:00:07]}  Rb1 {[%clk 0:00:07]} 45. b6 {[%clk 0:00:06]}  Bxb6+ {[%clk 0:00:06]} 46. Nxb6+ {[%clk 0:00:04]}  Rxb6 {[%clk 0:00:06]} 47. Ke5 {[%clk 0:00:05]}  Rb4 {[%clk 0:00:07]} 48. Kf6 {[%clk 0:00:05]}  Rg4 {[%clk 0:00:07]} 49. Kxf7 {[%clk 0:00:04]}  Rf4+ {[%clk 0:00:07]} 50. Kg6 {[%clk 0:00:04]}  Ke6 {[%clk 0:00:07]} 51. Kg5 {[%clk 0:00:04]}  Re4 {[%clk 0:00:07]} 52. Rxh4 {[%clk 0:00:05]}  Rxh4 {[%clk 0:00:07]} 53. Kxh4 {[%clk 0:00:05]} 1/2-1/2


[Site "https://www.chess.com"]

[Event "Titled Tuesday Blitz November 22 Early 2022"]
[White "Lehtosaari, Mauri"]
[Black "Boraso, Alessio"]
[WhiteFideId "501999"]
[BlackFideId "848077"]
[WhiteElo "2503"]
[BlackElo "2286"]
[Result "1/2-1/2"]
[Round "11"]
[TimeControl "180+1"]
[Date "2022.11.23"]
[WhiteClock "0:00:17"]
[BlackClock "0:00:10"]

1. d4 {[%clk 0:03:00]}  Nf6 {[%clk 0:02:59]} 2. Nf3 {[%clk 0:03:01]}  g6 {[%clk 0:02:59]} 3. Bg5 {[%clk 0:02:59]}  Ne4 {[%clk 0:02:58]} 4. Bf4 {[%clk 0:02:59]}  c5 {[%clk 0:02:58]} 5. Nbd2 {[%clk 0:02:59]}  d5 {[%clk 0:02:52]} 6. e3 {[%clk 0:02:58]}  Bg7 {[%clk 0:02:51]} 7. c3 {[%clk 0:02:53]}  Bf5 {[%clk 0:02:46]} 8. Nxe4 {[%clk 0:02:49]}  Bxe4 {[%clk 0:02:44]} 9. Bxb8 {[%clk 0:02:44]}  Rxb8 {[%clk 0:02:14]} 10. Qa4+ {[%clk 0:02:28]}  Kf8 {[%clk 0:02:14]} 11. Qxa7 {[%clk 0:02:25]}  c4 {[%clk 0:02:05]} 12. Be2 {[%clk 0:02:15]}  h5 {[%clk 0:02:04]} 13. O-O {[%clk 0:02:11]}  h4 {[%clk 0:02:05]} 14. h3 {[%clk 0:02:07]}  Bf6 {[%clk 0:01:58]} 15. Ne5 {[%clk 0:02:01]}  Bxe5 {[%clk 0:01:40]} 16. dxe5 {[%clk 0:02:01]}  Qc7 {[%clk 0:01:41]} 17. Qd4 {[%clk 0:01:58]}  e6 {[%clk 0:01:39]} 18. f3 {[%clk 0:01:51]}  Bc2 {[%clk 0:01:31]} 19. a4 {[%clk 0:01:46]}  Kg7 {[%clk 0:01:25]} 20. e4 {[%clk 0:01:10]}  Rhd8 {[%clk 0:01:22]} 21. exd5 {[%clk 0:01:09]}  Rxd5 {[%clk 0:01:21]} 22. Qxc4 {[%clk 0:01:02]}  Qb6+ {[%clk 0:00:51]} 23. Kh1 {[%clk 0:00:54]}  Rxe5 {[%clk 0:00:51]} 24. Bd3 {[%clk 0:00:44]}  Bxd3 {[%clk 0:00:32]} 25. Qxd3 {[%clk 0:00:44]}  Rd8 {[%clk 0:00:33]} 26. Qc2 {[%clk 0:00:35]}  Red5 {[%clk 0:00:33]} 27. Rad1 {[%clk 0:00:22]}  Qe3 {[%clk 0:00:33]} 28. Rfe1 {[%clk 0:00:20]}  Qf4 {[%clk 0:00:25]} 29. Rxd5 {[%clk 0:00:20]}  Rxd5 {[%clk 0:00:25]} 30. Qe2 {[%clk 0:00:18]}  Rd2 {[%clk 0:00:23]} 31. Qe5+ {[%clk 0:00:18]}  Qxe5 {[%clk 0:00:23]} 32. Rxe5 {[%clk 0:00:19]}  Rxb2 {[%clk 0:00:24]} 33. Re4 {[%clk 0:00:19]}  g5 {[%clk 0:00:23]} 34. Rb4 {[%clk 0:00:19]}  Rc2 {[%clk 0:00:17]} 35. c4 {[%clk 0:00:19]}  Kg6 {[%clk 0:00:17]} 36. a5 {[%clk 0:00:19]}  Rc1+ {[%clk 0:00:16]} 37. Kh2 {[%clk 0:00:19]}  Kf5 {[%clk 0:00:11]} 38. Rxb7 {[%clk 0:00:18]}  f6 {[%clk 0:00:04]} 39. Rb4 {[%clk 0:00:15]}  Ra1 {[%clk 0:00:03]} 40. Rb5+ {[%clk 0:00:16]}  Kf4 {[%clk 0:00:03]} 41. c5 {[%clk 0:00:16]}  Ke5 {[%clk 0:00:03]} 42. c6+ {[%clk 0:00:13]}  Kd6 {[%clk 0:00:03]} 43. Rb6 {[%clk 0:00:11]}  Rxa5 {[%clk 0:00:03]} 44. c7+ {[%clk 0:00:11]}  Kxc7 {[%clk 0:00:03]} 45. Rxe6 {[%clk 0:00:12]}  Rf5 {[%clk 0:00:03]} 46. Kg1 {[%clk 0:00:12]}  Kd7 {[%clk 0:00:04]} 47. Ra6 {[%clk 0:00:13]}  Ke7 {[%clk 0:00:04]} 48. Kf2 {[%clk 0:00:13]}  Kf7 {[%clk 0:00:04]} 49. Ke3 {[%clk 0:00:14]}  Kg6 {[%clk 0:00:05]} 50. Ra8 {[%clk 0:00:14]}  Rb5 {[%clk 0:00:05]} 51. Ra2 {[%clk 0:00:13]}  Kf5 {[%clk 0:00:06]} 52. Rd2 {[%clk 0:00:13]}  Rb3+ {[%clk 0:00:06]} 53. Kf2 {[%clk 0:00:13]}  Rb4 {[%clk 0:00:06]} 54. Rd5+ {[%clk 0:00:13]}  Kf4 {[%clk 0:00:06]} 55. Rd2 {[%clk 0:00:14]}  f5 {[%clk 0:00:07]} 56. Re2 {[%clk 0:00:14]}  Rc4 {[%clk 0:00:05]} 57. Ra2 {[%clk 0:00:14]}  Rb4 {[%clk 0:00:05]} 58. Re2 {[%clk 0:00:13]}  Rc4 {[%clk 0:00:05]} 59. Rd2 {[%clk 0:00:13]}  Ra4 {[%clk 0:00:05]} 60. Re2 {[%clk 0:00:14]}  g4 {[%clk 0:00:06]} 61. fxg4 {[%clk 0:00:14]}  fxg4 {[%clk 0:00:07]} 62. hxg4 {[%clk 0:00:14]}  Kxg4 {[%clk 0:00:07]} 63. Rd2 {[%clk 0:00:15]}  Rf4+ {[%clk 0:00:08]} 64. Kg1 {[%clk 0:00:14]}  Kg3 {[%clk 0:00:07]} 65. Rd3+ {[%clk 0:00:14]}  Kg4 {[%clk 0:00:08]} 66. Kh2 {[%clk 0:00:15]}  Rc4 {[%clk 0:00:08]} 67. Re3 {[%clk 0:00:15]}  Rd4 {[%clk 0:00:09]} 68. Rc3 {[%clk 0:00:15]}  Rb4 {[%clk 0:00:09]} 69. Rd3 {[%clk 0:00:16]}  Ra4 {[%clk 0:00:09]} 70. Rc3 {[%clk 0:00:16]}  Rf4 {[%clk 0:00:09]} 71. Rd3 {[%clk 0:00:16]}  Ra4 {[%clk 0:00:09]} 72. Rc3 {[%clk 0:00:17]}  Rf4 {[%clk 0:00:09]} 73. Ra3 {[%clk 0:00:17]}  Rb4 {[%clk 0:00:09]} 74. Rc3 {[%clk 0:00:17]}  Rf4 {[%clk 0:00:10]} 1/2-1/2


[Site "https://www.chess.com"]

[Event "Titled Tuesday Blitz November 22 Early 2022"]
[White "Manon-og, Ramon Jr."]
[Black "Sreyas Payyappat"]
[WhiteFideId "5200776"]
[BlackFideId "46674969"]
[WhiteElo "2317"]
[BlackElo "2083"]
[Result "1-0"]
[Round "11"]
[TimeControl "180+1"]
[Date "2022.11.23"]
[WhiteClock "0:00:54"]
[BlackClock "0:00:59"]

1. e4 {[%clk 0:02:59]}  c6 {[%clk 0:02:56]} 2. d4 {[%clk 0:02:59]}  d5 {[%clk 0:02:57]} 3. e5 {[%clk 0:03:00]}  Bf5 {[%clk 0:02:56]} 4. Nd2 {[%clk 0:03:00]}  e6 {[%clk 0:02:51]} 5. Nb3 {[%clk 0:03:00]}  c5 {[%clk 0:02:49]} 6. Nf3 {[%clk 0:02:57]}  Nc6 {[%clk 0:02:44]} 7. dxc5 {[%clk 0:02:56]}  Bxc5 {[%clk 0:02:42]} 8. Nxc5 {[%clk 0:02:55]}  Qa5+ {[%clk 0:02:38]} 9. c3 {[%clk 0:02:55]}  Qxc5 {[%clk 0:02:36]} 10. Be2 {[%clk 0:02:55]}  Nge7 {[%clk 0:02:32]} 11. O-O {[%clk 0:02:45]}  Ng6 {[%clk 0:02:30]} 12. Be3 {[%clk 0:02:26]}  Qe7 {[%clk 0:02:28]} 13. Bd4 {[%clk 0:02:27]}  O-O {[%clk 0:02:27]} 14. Qd2 {[%clk 0:02:22]}  f6 {[%clk 0:02:25]} 15. exf6 {[%clk 0:02:22]}  gxf6 {[%clk 0:02:26]} 16. Be3 {[%clk 0:02:18]}  Rad8 {[%clk 0:02:23]} 17. Bh6 {[%clk 0:02:18]}  Rfe8 {[%clk 0:02:20]} 18. h3 {[%clk 0:02:18]}  e5 {[%clk 0:02:20]} 19. Rfe1 {[%clk 0:02:13]}  d4 {[%clk 0:02:16]} 20. cxd4 {[%clk 0:02:12]}  Nxd4 {[%clk 0:02:17]} 21. Nxd4 {[%clk 0:02:11]}  Rxd4 {[%clk 0:02:18]} 22. Qc3 {[%clk 0:02:07]}  Rc8 {[%clk 0:02:14]} 23. Qf3 {[%clk 0:01:56]}  Be4 {[%clk 0:02:02]} 24. Qg3 {[%clk 0:01:45]}  Qb4 {[%clk 0:01:39]} 25. Bg4 {[%clk 0:01:34]}  f5 {[%clk 0:01:36]} 26. Bh5 {[%clk 0:01:19]}  f4 {[%clk 0:01:32]} 27. Qg4 {[%clk 0:01:18]}  Re8 {[%clk 0:01:09]} 28. Rxe4 {[%clk 0:01:07]}  Rxe4 {[%clk 0:01:08]} 29. Bxg6 {[%clk 0:01:07]}  Re1+ {[%clk 0:01:07]} 30. Rxe1 {[%clk 0:01:07]}  Qxe1+ {[%clk 0:01:08]} 31. Kh2 {[%clk 0:01:08]}  Re7 {[%clk 0:01:01]} 32. Bh5+ {[%clk 0:00:55]}  Kh8 {[%clk 0:01:00]} 33. Qc8+ {[%clk 0:00:54]}  Re8 {[%clk 0:00:59]} 34. Qxe8# {[%clk 0:00:54]} 1-0


[Site "https://www.chess.com"]

[Event "Titled Tuesday Blitz November 22 Early 2022"]
[White "Martin, Lewis"]
[Black "Gjestemoen-VonHirsch, Andre"]
[WhiteFideId "410551"]
[BlackFideId "1539531"]
[WhiteElo "2145"]
[BlackElo "2198"]
[Result "0-1"]
[Round "11"]
[TimeControl "180+1"]
[Date "2022.11.23"]
[WhiteClock "0:00:15"]
[BlackClock "0:00:23"]

1. e4 {[%clk 0:03:00]}  g6 {[%clk 0:02:45]} 2. Nf3 {[%clk 0:03:00]}  Bg7 {[%clk 0:02:45]} 3. d4 {[%clk 0:03:00]}  c5 {[%clk 0:02:44]} 4. dxc5 {[%clk 0:02:57]}  Qa5+ {[%clk 0:02:42]} 5. c3 {[%clk 0:02:56]}  Qxc5 {[%clk 0:02:40]} 6. Be3 {[%clk 0:02:54]}  Qc7 {[%clk 0:02:35]} 7. Bb5 {[%clk 0:02:49]}  Nc6 {[%clk 0:02:30]} 8. O-O {[%clk 0:02:47]}  Nf6 {[%clk 0:02:29]} 9. Nbd2 {[%clk 0:02:46]}  O-O {[%clk 0:02:19]} 10. h3 {[%clk 0:02:45]}  a6 {[%clk 0:02:15]} 11. Ba4 {[%clk 0:02:45]}  b5 {[%clk 0:02:14]} 12. Bb3 {[%clk 0:02:44]}  d6 {[%clk 0:02:14]} 13. Re1 {[%clk 0:02:33]}  Bb7 {[%clk 0:02:06]} 14. Ng5 {[%clk 0:02:23]}  Na5 {[%clk 0:01:56]} 15. Bc2 {[%clk 0:02:15]}  Nc4 {[%clk 0:01:38]} 16. Nxc4 {[%clk 0:02:14]}  bxc4 {[%clk 0:01:39]} 17. h4 {[%clk 0:02:01]}  h6 {[%clk 0:01:35]} 18. Nh3 {[%clk 0:02:00]}  Bxe4 {[%clk 0:01:33]} 19. Bxe4 {[%clk 0:01:54]}  Nxe4 {[%clk 0:01:34]} 20. Bd4 {[%clk 0:01:47]}  f5 {[%clk 0:01:25]} 21. Nf4 {[%clk 0:01:45]}  e5 {[%clk 0:01:14]} 22. Ne6 {[%clk 0:01:35]}  Qf7 {[%clk 0:01:14]} 23. Nxf8 {[%clk 0:01:28]}  exd4 {[%clk 0:01:14]} 24. f3 {[%clk 0:01:15]}  Nc5 {[%clk 0:00:42]} 25. cxd4 {[%clk 0:01:09]}  Nd3 {[%clk 0:00:41]} 26. Re2 {[%clk 0:00:36]}  Bxd4+ {[%clk 0:00:36]} 27. Kh2 {[%clk 0:00:34]}  Rxf8 {[%clk 0:00:35]} 28. Rb1 {[%clk 0:00:26]}  Qf6 {[%clk 0:00:34]} 29. g3 {[%clk 0:00:25]}  f4 {[%clk 0:00:34]} 30. b3 {[%clk 0:00:22]}  fxg3+ {[%clk 0:00:33]} 31. Kh3 {[%clk 0:00:21]}  Nf2+ {[%clk 0:00:15]} 32. Rxf2 {[%clk 0:00:19]}  gxf2 {[%clk 0:00:16]} 33. Qe2 {[%clk 0:00:13]}  Qxf3+ {[%clk 0:00:15]} 34. Qxf3 {[%clk 0:00:13]}  Rxf3+ {[%clk 0:00:16]} 35. Kg2 {[%clk 0:00:13]}  f1=Q+ {[%clk 0:00:17]} 36. Rxf1 {[%clk 0:00:12]}  Rxf1 {[%clk 0:00:18]} 37. Kxf1 {[%clk 0:00:13]}  cxb3 {[%clk 0:00:19]} 38. axb3 {[%clk 0:00:12]}  Bc5 {[%clk 0:00:19]} 39. Ke2 {[%clk 0:00:13]}  Bb4 {[%clk 0:00:20]} 40. Kd3 {[%clk 0:00:14]}  a5 {[%clk 0:00:21]} 41. Kc4 {[%clk 0:00:15]}  Kf7 {[%clk 0:00:21]} 42. Kd5 {[%clk 0:00:15]}  Kf6 {[%clk 0:00:22]} 43. Ke4 {[%clk 0:00:15]}  g5 {[%clk 0:00:22]} 44. h5 {[%clk 0:00:15]}  Ke6 {[%clk 0:00:21]} 45. Kd4 {[%clk 0:00:15]}  Kf5 {[%clk 0:00:22]} 46. Kd5 {[%clk 0:00:15]}  Kg4 {[%clk 0:00:23]} 0-1


[Site "https://www.chess.com"]